bitfinex-derivatives/quotes_BNBF0:USTF0_20260110
["timestamp","ask_amount","ask_price","bid_price","bid_amount"]
[1768051053052,0.19284907,902.42,901.23,0.83361766]
[1768051053251,0.19284907,902.42,901.07,1.11130452]
[1768051053252,0.19284907,902.42,901.25,0.83361766]
[1768051054153,0.19284907,902.42,901.28,0.83361766]
[1768051055251,0.19284907,902.42,901.3,0.83361766]
[1768051056155,0.19284907,902.42,901.32,0.83361766]
[1768051056951,0.19284907,902.42,901.29,0.83361766]
[1768051057155,0.19284907,902.42,900.8,1.433]
[1768051057156,0.19284907,902.42,901.21,0.83361766]
[1768051057354,0.19284907,902.42,901.22,0.83361766]
[1768051058258,0.19284907,902.42,901.24,0.83361766]
[1768051059154,0.19284907,902.42,901.25,0.83361766]
[1768051059355,0.19284907,902.42,901.26,0.83361766]
[1768051060158,0.19284907,902.42,901.27,0.83361766]
[1768051061260,0.19284907,902.42,901.28,0.83361766]
[1768051062163,0.19284907,902.42,901.3,0.83361766]
[1768051063263,0.19284907,902.42,901.31,0.83361766]
[1768051065662,0.19284907,902.42,901.29,0.83361766]
[1768051067461,0.19284907,902.42,901.3,0.83361766]
[1768051068163,0.19284907,902.42,901.29,0.83361766]
[1768051068361,0.19284907,902.42,901.3,0.83361766]
[1768051069163,0.19284907,902.42,901.29,0.83361766]
[1768051069367,0.19284907,902.42,901.3,0.83361766]
[1768051075466,0.19284907,902.42,901.31,0.83361766]
[1768051075968,0.19284907,902.42,901.14,1.11130452]
[1768051076166,0.19284907,902.42,901.31,0.82692923]
[1768051078369,0.19284907,902.42,901.32,0.82692923]
[1768051082571,0.19284907,902.42,901.33,0.82692923]
[1768051085476,0.19284907,902.42,901.34,0.82692923]
[1768051087377,0.19284907,902.42,901.28,5.18246923]
[1768051087378,0.19284907,902.42,901.35,0.82692923]
[1768051090484,0.19284907,902.42,901.34,0.82692923]
[1768051090780,0.19284907,902.42,901.33,0.82692923]
[1768051091584,0.19284907,902.42,901.29,0.82692923]
[1768051092984,0.19284907,902.42,901.28,6.00939846]
[1768051094487,0.19284907,902.42,901.28,5.18246923]
[1768051096087,0.19284907,902.42,901.29,1.634]
[1768051136128,0.19284907,902.42,901.28,5.18246923]
[1768051139030,0.19284907,902.42,901.29,2.041]
[1768051143441,0.19284907,902.42,901.33,0.82974272]
[1768051144640,0.19284907,902.42,901.34,0.82974272]
[1768051144836,0.19284907,902.42,901.37,0.82974272]
[1768051145136,0.19284907,902.42,901.38,0.82974272]
[1768051145340,0.19284907,902.42,901.36,0.82974272]
[1768051145540,0.19284907,902.42,901.38,0.82974272]
[1768051145740,0.19284907,902.42,901.39,0.82974272]
[1768051146144,0.19284907,902.42,901.38,0.82974272]
[1768051147240,0.19284907,902.42,901.37,0.82974272]
[1768051147841,0.19284907,902.42,901.4,0.82974272]
[1768051148241,0.19284907,902.42,901.41,0.82974272]
[1768051149242,0.19284907,902.42,901.4,0.82974272]
[1768051150145,0.19284907,902.42,901.42,0.82974272]
[1768051151240,0.19284907,902.42,901.41,0.82974272]
[1768051152343,0.19284907,902.42,901.4,0.82974272]
[1768051152546,0.19284907,902.42,901.37,0.82974272]
[1768051153448,0.19284907,902.42,901.36,0.82974272]
[1768051157447,0.19284907,902.42,901.35,0.82974272]
[1768051162363,0.19284907,902.42,901.34,0.82974272]
[1768051169164,0.19284907,902.42,901.35,0.82974272]
[1768051175267,0.19284907,902.42,901.36,0.82974272]
[1768051177376,0.19284907,902.42,901.32,0.82974272]
[1768051177569,0.19284907,902.42,901.3,0.82974272]
[1768051177873,0.19284907,902.42,901.29,2.041]
[1768051182370,0.19284907,902.42,901.29,2.86879347]
[1768051184378,0.19284907,902.42,901.3,0.82779347]
[1768051186180,0.19284907,902.42,901.31,0.82779347]
[1768051186479,0.19284907,902.42,901.32,0.82779347]
[1768051187179,0.19284907,902.42,901.33,0.82779347]
[1768051190080,0.19284907,902.42,901.34,1.904]
[1768051190681,0.19284907,902.42,901.36,0.82779347]
[1768051195287,0.19284907,902.42,901.37,0.82779347]
[1768051195881,0.19284907,902.42,901.41,0.82779347]
[1768051196084,0.19284907,902.42,901.43,0.82779347]
[1768051208298,0.19284907,902.42,901.42,0.82779347]
[1768051208593,0.19284907,902.42,901.43,0.82779347]
[1768051209200,0.19284907,902.42,901.42,0.82779347]
[1768051210197,0.19284907,902.42,901.43,0.82779347]
[1768051210397,0.19284907,902.42,901.42,0.82779347]
[1768051212399,0.19284907,902.42,901.43,0.82779347]
[1768051227209,0.19284907,902.42,901.44,0.82779347]
[1768051231106,0.19284907,902.42,901.45,0.82779347]
[1768051232310,0.19284907,902.42,901.34,1.904]
[1768051238208,0.19284907,902.42,901.16,0.82779347]
[1768051240313,0.19284907,902.42,901.15,0.82779347]
[1768051240915,0.19284907,902.42,901.16,1.886]
[1768051241114,0.19284907,902.42,901.16,2.71379347]
[1768051242015,0.19284907,902.42,901.16,7.58811777]
[1768051243114,0.19284907,902.42,901.16,6.7603243]
[1768051246327,2.7771789,903.1,901.16,6.7603243]
[1768051246628,0.19290626,902.16,901.16,6.7603243]
[1768051247028,3.35439774,902.36,901.16,6.7603243]
[1768051247225,0.19290626,902.16,901.16,6.7603243]
[1768051261536,0.19290626,902.16,901.16,7.58811777]
[1768051262041,0.19290626,902.16,901.17,0.82779347]
[1768051265342,0.19290626,902.16,901.18,0.82779347]
[1768051266344,3.35439774,902.36,901.31,0.82779347]
[1768051266542,0.19292872,902.31,901.3,0.82779347]
[1768051269243,0.19292872,902.31,901.31,0.82779347]
[1768051269544,0.19292872,902.31,901.3,0.82779347]
[1768051270143,0.19292872,902.31,901.31,0.82779347]
[1768051273248,0.19292872,902.31,901.16,6.7603243]
[1768051273249,0.19292872,902.31,901.32,0.82779347]
[1768051275454,0.19292872,902.31,901.18,0.82779347]
[1768051276153,0.19292872,902.31,901.19,0.82779347]
[1768051277451,0.19292872,902.31,901.2,0.82779347]
[1768051277953,0.19292872,902.31,901.18,0.82779347]
[1768051278155,0.19292872,902.31,901.16,6.7603243]
[1768051278156,0.19292872,902.31,901.17,0.82779347]
[1768051279054,0.19292872,902.31,901.16,6.7603243]
[1768051298969,0.19292872,902.31,901.16,4.8743243]
[1768051302275,0.19292872,902.31,901.16,7.0383243]
[1768051315289,0.19292872,902.31,901.16,7.86611777]
[1768051316186,0.19292872,902.31,901.17,0.82779347]
[1768051318288,0.19292872,902.31,901.18,0.82779347]
[1768051319186,0.19292872,902.31,901.19,0.82779347]
[1768051320190,0.19292872,902.31,901.22,0.82779347]
[1768051322292,0.19292872,902.31,901.23,0.82779347]
[1768051325389,0.19292872,902.31,901.31,0.82779347]
[1768051325690,0.19292872,902.31,901.34,0.82779347]
[1768051326290,0.19292872,902.31,901.32,0.82779347]
[1768051327493,0.19292872,902.31,901.31,0.82779347]
[1768051328295,0.19292872,902.31,901.3,0.82779347]
[1768051330402,0.19292872,902.31,901.29,0.82779347]
[1768051332302,0.19292872,902.31,901.28,0.82779347]
[1768051332803,0.19292872,902.31,901.36,0.82779347]
[1768051333396,0.19292872,902.31,901.35,0.82779347]
[1768051334096,3.35439774,902.36,901.35,0.82779347]
[1768051334301,3.35439774,902.36,901.43,0.82779347]
[1768051334501,3.35439774,902.36,901.44,0.82779347]
[1768051335402,3.35439774,902.36,901.43,0.82779347]
[1768051336405,3.35439774,902.36,901.42,0.82779347]
[1768051337501,3.35439774,902.36,901.41,0.82779347]
[1768051338507,3.35439774,902.36,901.4,0.82779347]
[1768051339302,3.35439774,902.36,901.39,0.82779347]
[1768051340308,3.35439774,902.36,901.38,0.82779347]
[1768051341905,0.19289931,902.5,901.38,0.82779347]
[1768051342109,0.19289931,902.5,901.16,7.0383243]
[1768051342110,2.7771789,903.39,901.45,0.82779347]
[1768051342409,0.1928277,902.64,901.44,0.82779347]
[1768051342710,2.7771789,903.47,901.44,0.82779347]
[1768051343003,0.19282022,902.64,901.44,0.82779347]
[1768051343208,2.7771789,903.47,901.44,0.82779347]
[1768051343409,0.19282022,902.64,901.44,0.82779347]
[1768051343704,7.81523248,903.48,901.44,0.82779347]
[1768051343908,0.19281968,902.64,901.44,0.82779347]
[1768051344105,7.81523248,903.48,901.44,0.82779347]
[1768051344310,7.81523248,903.48,901.43,0.82779347]
[1768051344604,5.03805358,903.48,901.43,0.82779347]
[1768051345009,0.19282022,902.97,901.43,0.82779347]
[1768051345309,0.19282022,902.97,901.6,0.82779347]
[1768051346404,0.19282022,902.97,901.58,0.82779347]
[1768051347408,0.19282022,902.97,901.57,0.82779347]
[1768051348307,0.19282022,902.97,901.55,0.82779347]
[1768051348910,0.19282022,902.97,901.44,1.818]
[1768051349110,0.19282022,902.97,901.55,0.82425992]
[1768051349312,0.19282022,902.97,901.54,0.82425992]
[1768051350310,0.19282022,902.97,901.53,0.82425992]
[1768051352308,0.19282022,902.97,901.52,0.82425992]
[1768051354211,0.19282022,902.97,901.59,0.82425992]
[1768051354409,0.19282022,902.97,901.58,0.82425992]
[1768051355311,0.19282022,902.97,901.57,0.82425992]
[1768051357315,0.19282022,902.97,901.56,0.82425992]
[1768051358215,0.19282022,902.97,901.57,0.82425992]
[1768051358417,0.19282022,902.97,901.56,0.82425992]
[1768051361725,0.19282022,902.97,901.58,0.82425992]
[1768051363822,0.19282022,902.97,901.6,0.82425992]
[1768051364721,0.19282022,902.97,901.6,5.66173958]
[1768051365926,0.19282022,902.97,901.6,4.83747966]
[1768051378241,0.19282022,902.97,901.6,5.66173958]
[1768051378439,0.19282022,902.97,901.6,4.83747966]
[1768051389951,0.19282022,902.97,901.61,2.01]
[1768051400264,0.19282022,902.97,901.64,0.82616264]
[1768051401461,0.19282022,902.97,901.66,0.82616264]
[1768051401660,0.19282022,902.97,901.72,0.82616264]
[1768051402460,0.19282022,902.97,901.75,0.82616264]
[1768051404062,0.19282022,902.97,901.78,0.82616264]
[1768051407765,0.19282022,902.97,901.79,0.82616264]
[1768051409267,0.19282022,902.97,901.81,0.82616264]
[1768051409464,0.19282022,902.97,901.8,0.82616264]
[1768051410268,0.19282022,902.97,901.84,0.82616264]
[1768051410569,0.19282022,902.97,901.91,0.82616264]
[1768051410869,0.19282022,902.97,901.9,0.82616264]
[1768051411169,0.19282022,902.97,901.92,1.666]
[1768051462312,0.19282022,902.97,901.75,0.82469859]
[1768051465616,0.19282022,902.97,901.76,1.959]
[1768051471514,0.19282022,902.97,901.76,2.78369859]
[1768051475314,0.19282022,902.97,901.77,0.82469859]
[1768051477421,0.19282022,902.97,901.78,0.82469859]
[1768051479323,0.19282022,902.97,901.79,0.82469859]
[1768051481423,0.19282022,902.97,901.8,0.82469859]
[1768051482426,0.19282022,902.97,901.81,0.82469859]
[1768051483322,0.19282022,902.97,901.82,0.82469859]
[1768051484326,0.19282022,902.97,901.83,0.82469859]
[1768051490329,0.19282022,902.97,901.84,0.82469859]
[1768051493035,0.19282022,902.97,901.82,0.82469859]
[1768051504153,0.19282022,902.97,901.76,1.959]
[1768051504447,0.19282022,902.97,901.82,0.82888605]
[1768051505250,0.19282022,902.97,901.81,0.82888605]
[1768051514159,0.19282022,902.97,901.8,0.82888605]
[1768051517761,0.19282022,902.97,901.81,1.81]
[1768051530071,0.19282022,902.97,901.82,0.82888605]
[1768051530275,0.19282022,902.97,901.87,0.82888605]
[1768051530574,0.19282022,902.97,901.92,0.82888605]
[1768051531070,0.19282022,902.97,901.91,0.82888605]
[1768051532070,0.19282022,902.97,901.9,0.82888605]
[1768051532773,0.19282022,902.97,901.93,0.82888605]
[1768051532974,0.19282022,902.97,901.95,0.82888605]
[1768051533173,0.19282022,902.97,901.94,0.82888605]
[1768051534175,0.19282022,902.97,901.93,0.82888605]
[1768051536177,0.19282022,902.97,901.92,0.82888605]
[1768051537173,0.19282022,902.97,901.91,0.82888605]
[1768051539173,0.19282022,902.97,901.9,0.82888605]
[1768051542281,0.19282022,902.97,901.89,0.82888605]
[1768051547184,0.19282022,902.97,901.88,0.82888605]
[1768051551393,0.19282022,902.97,901.89,0.82888605]
[1768051552286,0.19282022,902.97,901.88,0.82888605]
[1768051556592,2.7771789,903.84,901.87,0.82888605]
[1768051556792,0.19275026,902.84,901.87,0.82888605]
[1768051556989,3.82419132,903.14,901.87,0.82888605]
[1768051557388,0.19275133,902.84,901.87,0.82888605]
[1768051561190,0.19275133,902.84,901.88,0.82888605]
[1768051563699,0.19275133,902.84,901.89,1.993]
[1768051565190,0.19275133,902.84,901.89,2.82188605]
[1768051565490,0.19275133,902.84,901.89,1.993]
[1768051608625,0.19275133,902.84,901.85,0.82888605]
[1768051609121,0.19275133,902.84,901.86,0.82888605]
[1768051610227,0.19275133,902.84,901.87,0.82888605]
[1768051611123,0.19275133,902.84,901.88,0.82888605]
[1768051618125,0.19275133,902.84,901.87,0.82888605]
[1768051622634,0.19275133,902.84,901.88,0.82888605]
[1768051631739,0.19275133,902.84,901.71,1.10632362]
[1768051631934,0.19275133,902.84,901.88,0.82834947]
[1768051634940,0.19275133,902.84,901.9,0.82834947]
[1768051635139,0.19275133,902.84,901.95,0.82834947]
[1768051635340,0.19275133,902.84,901.94,0.82834947]
[1768051636141,0.19275133,902.84,901.93,0.82834947]
[1768051637441,0.19275133,902.84,901.92,0.82834947]
[1768051637743,0.19275133,902.84,901.88,0.82834947]
[1768051640043,0.19275133,902.84,901.84,4.97113167]
[1768051640247,0.19275133,902.84,901.87,0.82782754]
[1768051640642,0.19275133,902.84,901.88,0.82782754]
[1768051641246,0.19275133,902.84,901.87,0.82782754]
[1768051644249,0.19275133,902.84,901.88,0.82782754]
[1768051646146,0.19275133,902.84,901.87,0.82782754]
[1768051646448,0.19275133,902.84,901.88,0.82782754]
[1768051651854,0.19275133,902.84,901.89,0.82782754]
[1768051661258,0.19275133,902.84,901.92,0.82782754]
[1768051662159,0.19275133,902.84,901.91,0.82782754]
[1768051672069,0.19275133,902.84,901.92,1.707]
[1768051689275,0.19275133,902.84,901.92,2.53482754]
[1768051694982,0.19275133,902.84,901.92,1.707]
[1768051695278,0.19275133,902.84,901.92,2.5346794]
[1768051702389,0.19275133,902.84,901.93,0.8276794]
[1768051702586,0.19275133,902.84,901.92,2.5346794]
[1768051703189,0.19275133,902.84,901.93,0.8276794]
[1768051706492,0.19275133,902.84,901.92,1.707]
[1768051717195,0.19275133,902.84,901.84,5.79881107]
[1768051721203,0.19275133,902.84,901.85,1.918]
[1768051735215,0.19275133,902.84,901.84,4.97113167]
[1768051738615,0.19275133,902.84,901.85,2.631]
[1768051756531,0.19275133,902.84,901.71,0.82725474]
[1768051757332,2.7771789,903.6,901.71,0.82725474]
[1768051757531,0.19278604,902.67,901.71,0.82725474]
[1768051757927,3.53948147,902.81,901.71,0.82725474]
[1768051758132,0.19278604,902.67,901.71,0.82725474]
[1768051758333,0.19278604,902.67,901.72,0.82725474]
[1768051759229,0.19278604,902.67,901.84,0.82725474]
[1768051760134,0.19278604,902.67,901.86,0.82725474]
[1768051760628,0.19278604,902.67,901.85,3.37225474]
[1768051761836,3.53948147,902.81,901.87,0.82725474]
[1768051762037,3.53948147,902.81,901.88,0.82725474]
[1768051763639,3.53948147,902.81,901.93,0.82725474]
[1768051763838,3.53948147,902.81,901.94,0.82725474]
[1768051764339,3.53948147,902.81,901.93,0.82725474]
[1768051765341,3.53948147,902.81,901.92,0.82725474]
[1768051767238,3.53948147,902.81,901.93,0.82725474]
[1768051767444,3.53948147,902.81,901.92,0.82725474]
[1768051769440,3.53948147,902.81,901.91,0.82725474]
[1768051770445,3.53948147,902.81,901.9,0.82725474]
[1768051772445,3.53948147,902.81,901.89,0.82725474]
[1768051774349,3.53948147,902.81,901.88,0.82725474]
[1768051778350,3.53948147,902.81,901.87,0.82725474]
[1768051783358,3.53948147,902.81,901.88,0.82725474]
[1768051788563,3.53948147,902.81,901.89,0.82725474]
[1768051791466,3.53948147,902.81,901.9,0.82725474]
[1768051792565,3.53948147,902.81,901.91,0.82725474]
[1768051794369,3.53948147,902.81,901.92,0.82725474]
[1768051795368,3.53948147,902.81,901.93,0.82725474]
[1768051797472,3.53948147,902.81,901.94,0.82725474]
[1768051798368,3.53948147,902.81,901.95,0.82725474]
[1768051799374,3.53948147,902.81,901.96,0.82725474]
[1768051800476,3.53948147,902.81,901.97,0.82725474]
[1768051801374,3.53948147,902.81,901.98,0.82725474]
[1768051802486,3.53948147,902.81,901.99,0.82725474]
[1768051803479,3.53948147,902.81,902.01,0.82725474]
[1768051804279,3.53948147,902.81,902.02,1.809]
[1768051804483,3.53948147,902.81,902.02,2.63625474]
[1768051805584,3.53948147,902.81,902.03,0.82725474]
[1768051807386,3.53948147,902.81,902.04,0.82725474]
[1768051808388,3.53948147,902.81,902.05,0.82725474]
[1768051811791,2.7771789,903.9,902.17,0.82725474]
[1768051811992,0.19277269,903.02,902.16,0.82725474]
[1768051812192,0.19277269,903.02,902.13,0.82725474]
[1768051812391,3.257332,903.18,902.09,0.82725474]
[1768051813391,3.257332,903.18,902.08,0.82725474]
[1768051813591,0.19275934,902.94,902.08,0.82725474]
[1768051817396,0.19275934,902.94,902.07,0.82725474]
[1768051847219,0.19275934,902.94,902.08,0.82725474]
[1768051854424,0.19275934,902.94,902.09,0.82725474]
[1768051857330,0.19275934,902.94,902.1,0.82725474]
[1768051858130,0.19275934,902.94,902.11,2.082]
[1768051876349,0.19275934,902.94,902.11,2.90925474]
[1768051876550,0.19275934,902.94,902.11,2.082]
[1768051894162,0.19275934,902.94,902.1,0.82725474]
[1768051905677,0.19275934,902.94,902.11,0.82725474]
[1768051906684,3.257332,903.18,902.13,0.82725474]
[1768051906880,0.19274439,903.08,902.2,0.82725474]
[1768051907080,0.19274439,903.08,902.22,0.82725474]
[1768051907380,0.19274439,903.08,902.21,0.82725474]
[1768051907584,0.19274439,903.08,902.23,0.82725474]
[1768051908380,0.19274439,903.08,902.21,0.82725474]
[1768051910384,0.19274439,903.08,902.2,0.82725474]
[1768051911481,0.19274439,903.08,902.19,0.82725474]
[1768051914284,0.19274439,903.08,902.18,0.82725474]
[1768051917286,0.19274439,903.08,902.17,0.82725474]
[1768051917890,0.19274439,903.08,902.18,0.82725474]
[1768051920292,3.257332,903.18,902.21,0.82725474]
[1768051920492,3.257332,903.18,902.36,0.82725474]
[1768051920789,3.257332,903.18,902.4,0.82725474]
[1768051921189,3.257332,903.18,902.38,0.82725474]
[1768051921392,0.19271504,903.31,902.38,0.82725474]
[1768051922194,0.19271504,903.31,902.37,0.82725474]
[1768051922494,0.19271504,903.31,902.36,0.82725474]
[1768051923391,0.19271504,903.31,902.35,0.82725474]
[1768051924391,0.19271504,903.31,902.19,3.26532362]
[1768051924392,0.19271504,903.31,902.34,0.82725474]
[1768051925593,0.19271504,903.31,902.19,2.159]
[1768051928700,0.19271504,903.31,902.33,0.82312424]
[1768051928896,0.19271504,903.31,902.36,0.82312424]
[1768051929101,5.11621411,904.4,902.39,0.82312424]
[1768051929401,0.1926313,903.4,902.37,0.82312424]
[1768051929610,5.11621411,904.4,902.37,0.82312424]
[1768051929902,0.19262917,903.4,902.37,0.82312424]
[1768051930104,5.11621411,904.4,902.37,0.82312424]
[1768051930297,5.11621411,904.4,902.36,0.82312424]
[1768051930502,0.19262917,903.4,902.36,0.82312424]
[1768051930702,5.11621411,904.4,902.36,0.82312424]
[1768051931098,0.1926297,903.9,902.36,0.82312424]
[1768051931300,0.1926297,903.9,902.35,0.82312424]
[1768051932302,0.1926297,903.9,902.34,0.82312424]
[1768051934203,0.1926297,903.9,902.33,0.82312424]
[1768051934504,0.1926297,903.9,902.34,0.82312424]
[1768051935304,0.1926297,903.9,902.33,0.82312424]
[1768051935604,0.1926297,903.9,902.37,0.82312424]
[1768051936302,0.1926297,903.9,902.36,0.82312424]
[1768051938304,0.1926297,903.9,902.35,0.82312424]
[1768051939108,0.1926297,903.9,902.37,0.82312424]
[1768051940207,0.1926297,903.9,902.38,0.82312424]
[1768051940408,0.1926297,903.9,902.39,0.82312424]
[1768051941109,0.1926297,903.9,902.41,0.82312424]
[1768051941304,0.1926297,903.9,902.43,0.82312424]
[1768051942207,0.1926297,903.9,902.42,0.82312424]
[1768051942404,0.1926297,903.9,902.43,0.82312424]
[1768051942705,0.1926297,903.9,902.41,0.82312424]
[1768051944818,0.1926297,903.9,902.51,0.82312424]
[1768051945211,0.1926297,903.9,902.5,0.82312424]
[1768051945410,0.1926297,903.9,902.51,0.82312424]
[1768051945607,0.1926297,903.9,902.49,0.82312424]
[1768051950412,0.1926297,903.9,902.5,0.82312424]
[1768051951414,0.1926297,903.9,902.53,0.82312424]
[1768051952813,0.1926297,903.9,902.2,1.64624849]
[1768051952814,0.1926297,903.9,902.54,0.82312424]
[1768051954410,0.1926297,903.9,902.55,0.82312424]
[1768051955212,0.1926297,903.9,902.54,0.82312424]
[1768051955416,0.1926297,903.9,902.55,0.82312424]
[1768051957315,0.1926297,903.9,902.56,0.82312424]
[1768051959617,0.1926297,903.9,902.57,0.82312424]
[1768051960414,0.1926297,903.9,902.58,0.82312424]
[1768051961417,0.1926297,903.9,902.59,0.82312424]
[1768051962421,0.1926297,903.9,902.6,0.82312424]
[1768051963322,0.1926297,903.9,902.62,0.82312424]
[1768051964424,0.1926297,903.9,902.64,0.82312424]
[1768051967234,0.1926297,903.9,902.65,0.82312424]
[1768051967427,0.1926297,903.9,902.64,0.82312424]
[1768051968427,0.1926297,903.9,902.65,0.82312424]
[1768051970226,0.1926297,903.9,902.66,0.82312424]
[1768051974234,0.1926297,903.9,902.67,0.82312424]
[1768051975833,0.1926297,903.9,902.68,2.294]
[1768051976235,0.1926297,903.9,902.68,3.11712424]
[1768051978337,0.1926297,903.9,902.69,0.82312424]
[1768051979240,0.1926297,903.9,902.7,0.82312424]
[1768051981341,0.1926297,903.9,902.71,0.82312424]
[1768051982241,0.1926297,903.9,902.72,0.82312424]
[1768051982741,0.1926297,903.9,902.71,0.82312424]
[1768051983444,0.1926297,903.9,902.72,0.82312424]
[1768051984240,0.1926297,903.9,902.73,0.82312424]
[1768051984443,0.1926297,903.9,902.68,2.294]
[1768051993042,0.1926297,903.9,902.51,0.82471702]
[1768051993241,0.1926297,903.9,902.5,0.82471702]
[1768051995248,0.1926297,903.9,902.49,0.82471702]
[1768051996251,0.1926297,903.9,902.5,1.924]
[1768052008257,0.1926297,903.9,902.47,0.82471702]
[1768052012260,0.1926297,903.9,902.48,2.89771702]
[1768052017158,0.1926297,903.9,902.49,0.82471702]
[1768052020166,0.1926297,903.9,902.5,0.82471702]
[1768052022066,0.1926297,903.9,902.52,0.82471702]
[1768052022365,0.1926297,903.9,902.57,0.82471702]
[1768052024264,0.1926297,903.9,902.58,0.82471702]
[1768052025668,0.1926297,903.9,902.6,0.82471702]
[1768052025869,0.1926297,903.9,902.61,0.82471702]
[1768052026069,0.1926297,903.9,902.62,0.82471702]
[1768052028369,0.1926297,903.9,902.63,0.82471702]
[1768052029272,0.1926297,903.9,902.65,0.82471702]
[1768052030368,0.1926297,903.9,902.64,0.82471702]
[1768052031573,0.1926297,903.9,902.71,0.82471702]
[1768052032174,0.1926297,903.9,902.7,0.82471702]
[1768052032772,0.1926297,903.9,902.68,0.82471702]
[1768052033176,0.1926297,903.9,902.51,1.0996227]
[1768052033177,0.1926297,903.9,902.67,0.82471702]
[1768052034475,0.1926297,903.9,902.68,0.82471702]
[1768052035873,0.1926297,903.9,902.69,0.82471702]
[1768052037177,0.1926297,903.9,902.68,0.82471702]
[1768052039177,0.1926297,903.9,902.67,0.82471702]
[1768052042977,0.1926297,903.9,902.69,0.82471702]
[1768052044176,0.1926297,903.9,902.68,0.82471702]
[1768052048083,0.1926297,903.9,902.69,1.618]
[1768052048778,0.1926297,903.9,902.74,0.82471702]
[1768052050280,0.1926297,903.9,902.73,0.82471702]
[1768052051184,0.1926297,903.9,902.75,0.82471702]
[1768052052180,0.1926297,903.9,902.74,0.82471702]
[1768052057081,0.1926297,903.9,902.75,0.82471702]
[1768052057580,0.1926297,903.9,902.76,0.82471702]
[1768052063289,0.1926297,903.9,902.77,0.82471702]
[1768052066189,0.1926297,903.9,902.78,0.82471702]
[1768052068191,0.1926297,903.9,902.79,0.82471702]
[1768052068794,0.1926297,903.9,902.86,0.82471702]
[1768052070095,0.1926297,903.9,902.87,0.82471702]
[1768052075101,0.1926297,903.9,902.71,1.0996227]
[1768052075401,0.1926297,903.9,902.87,0.82387111]
[1768052079398,0.1926297,903.9,902.88,0.82387111]
[1768052088306,0.1926297,903.9,902.89,0.82387111]
[1768052091208,0.1926297,903.9,902.9,0.82387111]
[1768052094212,0.1926297,903.9,902.91,0.82387111]
[1768052100314,0.1926297,903.9,902.91,0.82473149]
[1768052101218,0.1926297,903.9,902.92,0.82473149]
[1768052103021,0.1926297,903.9,902.9,0.82473149]
[1768052106323,0.1926297,903.9,902.91,0.82473149]
[1768052109223,0.1926297,903.9,902.92,2.057]
[1768052110126,0.1926297,903.9,902.92,2.88173149]
[1768052113228,0.1926297,903.9,902.93,0.82473149]
[1768052118831,0.1926297,903.9,902.92,2.057]
[1768052131132,2.76663976,904.56,902.92,2.057]
[1768052131337,0.19258066,903.66,902.92,2.057]
[1768052131632,2.90531702,903.88,902.92,2.057]
[1768052131937,0.19258066,903.55,902.92,2.057]
[1768052132137,2.90531702,903.88,902.92,2.057]
[1768052132437,0.19261691,903.55,902.92,2.057]
[1768052132637,2.90531702,903.88,902.92,2.057]
[1768052132933,0.19261691,903.55,902.92,2.057]
[1768052133237,2.90531702,903.88,902.92,2.057]
[1768052133437,0.19261691,903.55,902.92,2.057]
[1768052133833,2.90531702,903.88,902.92,2.057]
[1768052134040,0.19261691,903.55,902.92,2.057]
[1768052134240,2.90531702,903.88,902.92,2.057]
[1768052134637,0.19261691,903.55,902.92,2.057]
[1768052134838,2.90531702,903.88,902.92,2.057]
[1768052135037,0.19261691,903.55,902.92,2.057]
[1768052135238,2.90531702,903.88,902.92,2.057]
[1768052135642,0.19261691,903.55,902.92,2.057]
[1768052135842,2.90531702,903.88,902.92,2.057]
[1768052136139,0.19261691,903.55,902.92,2.057]
[1768052136342,2.90531702,903.88,902.92,2.057]
[1768052136639,0.19261691,903.55,902.92,2.057]
[1768052136844,2.90531702,903.88,902.92,2.057]
[1768052137242,0.19261691,903.55,902.92,2.057]
[1768052137442,2.90531702,903.88,902.92,2.057]
[1768052137639,0.19261691,903.55,902.92,2.057]
[1768052137940,2.90531702,903.88,902.92,2.057]
[1768052138241,0.19261691,903.55,902.92,2.057]
[1768052138643,2.90531702,903.88,902.92,2.057]
[1768052138943,0.19261691,903.55,902.92,2.057]
[1768052139150,2.90531702,903.88,902.92,2.057]
[1768052139350,0.19261691,903.65,902.92,2.057]
[1768052143345,0.19261691,903.65,902.65,5.06470031]
[1768052146447,0.19261691,903.65,902.66,1.903]
[1768052152553,0.19261691,903.65,902.66,2.72773149]
[1768052156360,0.19261691,903.65,902.67,0.82473149]
[1768052159566,0.19261691,903.65,902.68,0.82473149]
[1768052160365,0.19261691,903.65,902.69,0.82473149]
[1768052162466,0.19261691,903.65,902.7,0.82473149]
[1768052163571,0.19261691,903.65,902.71,0.82473149]
[1768052166168,0.19261691,903.65,902.72,0.82473149]
[1768052168976,0.19261691,903.65,902.71,0.82473149]
[1768052171881,0.19261691,903.65,902.66,1.903]
[1768052172077,0.19261691,903.65,902.71,0.82567264]
[1768052172578,0.19261691,903.65,902.72,0.82567264]
[1768052174979,0.19261691,903.65,902.7,0.82567264]
[1768052176579,0.19261691,903.65,902.71,1.98]
[1768052208807,2.90531702,903.88,902.71,1.98]
[1768052214117,0.19266436,903.59,902.71,1.98]